bitfinex/quotes_SOLUSD_20241222
["timestamp","ask_amount","ask_price","bid_price","bid_amount"]
[1734861306908,20.0,186.07,185.98,7.7791]
[1734861307114,21.00805924,186.06,185.98,7.7791]
[1734861309127,1.00805924,186.06,185.98,1.5133]
[1734861309315,20.0,186.03,185.93,7.7791]
[1734861309515,1.00820138,186.02,185.93,7.7791]
[1734861309828,20.0,186.03,185.95,17.48771868]
[1734861310025,4.031,186.06,185.95,17.48771868]
[1734861310239,20.0,186.03,185.95,17.48771868]
[1734861310603,1.00804311,186.02,185.93,25.26681868]
[1734861311827,1.00804311,186.02,185.93,7.7791]
[1734861312331,1.00804311,186.02,185.94,23.776884]
[1734861312531,20.0,185.99,185.93,1.5133]
[1734861312708,1.00838375,185.98,185.93,1.5133]
[1734861312904,1.00838375,185.98,185.88,25.26681868]
[1734861313221,1.00838375,185.98,185.88,7.7791]
[1734861314533,20.0,185.95,185.88,7.7791]
[1734861314734,1.00850807,185.94,185.88,7.7791]
[1734861316320,24.0327,185.98,185.88,7.7791]
[1734861316547,20.0,185.95,185.88,7.7791]
[1734861317433,21.00837751,186.01,185.9,17.48771868]
[1734861317607,21.00837751,186.01,185.89,23.776884]
[1734861317811,4.0322,186.0,185.89,23.776884]
[1734861318038,1.00841934,185.99,185.89,41.26460268]
[1734861318843,20.0,185.97,185.89,41.26460268]
[1734861319132,20.0,185.97,185.91,17.48771868]
[1734861319332,1.00827195,186.03,185.92,23.776884]
[1734861319539,1.00827195,186.03,185.92,41.26460268]
[1734861319717,1.00827195,186.03,185.93,17.48771868]
[1734861320033,4.0318,186.02,185.89,17.48771868]
[1734861320235,1.00847764,186.01,185.89,23.776884]
[1734861321245,20.0,185.99,185.9,17.48771868]
[1734861321549,1.00831585,185.98,185.89,41.26460268]
[1734861322139,1.00831585,185.98,185.91,17.48771868]
[1734861322324,1.00831585,185.98,185.92,23.776884]
[1734861322519,1.00831585,185.98,185.9,17.48771868]
[1734861322733,1.00831585,185.98,185.89,41.26460268]
[1734861322917,20.0,186.0,185.91,23.776884]
[1734861323112,21.00826967,185.99,185.91,41.26460268]
[1734861323637,21.00826967,185.99,185.9,23.776884]
[1734861324140,20.0,185.97,185.89,23.776884]
[1734861324340,1.00842881,185.96,185.88,19.00101868]
[1734861325130,20.0,185.97,185.88,1.5133]
[1734861325331,20.0,185.95,185.88,1.5133]
[1734861325616,1.00856443,185.94,185.88,1.5133]
[1734861326635,1.00856443,185.94,185.87,23.776884]
[1734861327031,1.00856443,185.94,185.86,23.776884]
[1734861327226,20.0,185.93,185.85,23.776884]
[1734861327426,1.00869108,185.92,185.84,8.1793]
[1734861327828,1.00869108,185.92,185.82,17.48771868]
[1734861328028,1.00869108,185.92,185.81,18.16742118]
[1734861328618,1.00869108,185.92,185.82,17.48771868]
[1734861329219,1.00869108,185.92,185.83,23.776884]
[1734861330061,1.00879189,185.92,185.86,17.48771868]
[1734861330223,1.00879189,185.92,185.86,23.776884]
[1734861330558,1.00879189,185.92,185.84,17.48771868]
[1734861330761,1.00879189,185.92,185.85,23.776884]
[1734861331064,1.00863939,185.93,185.85,41.26460268]
[1734861333027,20.0,185.92,185.83,17.48771868]
[1734861333228,1.00877366,185.91,185.84,23.776884]
[1734861333859,1.00877366,185.91,185.83,23.776884]
[1734861334330,1.00877366,185.91,185.81,18.16742118]
[1734861334724,20.0,185.89,185.81,18.16742118]
[1734861334947,1.00883474,185.88,185.81,18.16742118]
[1734861335127,24.034,185.92,185.81,18.16742118]
[1734861335449,20.0,185.89,185.81,0.6797025]
[1734861335750,20.0,185.87,185.81,0.6797025]
[1734861336654,1.00888871,185.86,185.81,0.6797025]
[1734861337634,20.0,185.9,185.82,41.26460268]
[1734861337947,21.00879845,185.9,185.83,41.26460268]
[1734861338252,4.0338,185.93,185.83,41.26460268]
[1734861338549,20.0,185.9,185.83,23.776884]
[1734861338756,1.00869928,185.89,185.82,23.776884]
[1734861339929,1.00869928,185.89,185.81,18.16742118]
[1734861340128,20.0,185.88,185.81,0.6797025]
[1734861340328,1.00898545,185.87,185.81,0.6797025]
[1734861345675,20.0,185.85,185.81,0.6797025]
[1734861345849,1.00904971,185.84,185.81,0.6797025]
[1734861346595,1.00904971,185.84,185.82,0.354609]
[1734861347441,20.0,185.83,185.82,0.354609]
[1734861347753,21.00919929,185.83,185.82,0.354609]
[1734861347949,20.0,185.83,185.82,0.354609]
[1734861350355,1.00908382,185.88,185.82,0.354609]
[1734861350755,20.0,185.86,185.82,0.354609]
[1734861352140,20.0,185.9,185.82,0.354609]
[1734861352339,21.00890994,185.89,185.82,0.354609]
[1734861352740,21.00890994,185.89,185.82,24.131493]
[1734861353142,21.00890994,185.89,185.82,0.354609]
[1734861356591,4.0348,185.88,185.82,0.354609]
[1734861356782,20.0,185.85,185.82,0.354609]
[1734861357083,1.00904304,185.84,185.82,0.354609]
[1734861363185,1.00911966,185.83,185.82,0.354609]
[1734861363385,1.00911932,185.85,185.82,0.354609]
[1734861365602,4.0357,185.84,185.82,0.354609]
[1734861365808,21.00931934,185.83,185.82,0.354609]
[1734861366966,20.0,185.75,185.69,1.6321]
[1734861367563,20.0,185.79,185.69,1.6321]
[1734861367867,1.0094292,185.78,185.69,1.6321]
[1734861368289,1.0094292,185.78,185.7,23.776884]
[1734861368488,1.0094292,185.78,185.7,41.33480332]
[1734861368670,2.20682805,185.87,185.76,49.12260332]
[1734861368871,1.00909759,185.86,185.76,49.12260332]
[1734861369290,5.04429759,185.86,185.76,7.7878]
[1734861369674,5.04429759,185.86,185.7,1.6321]
[1734861369871,20.0,185.83,185.7,1.6321]
[1734861370080,1.00955077,185.82,185.7,1.6321]
[1734861370773,20.0,185.79,185.7,1.6321]
[1734861370973,21.00948247,185.78,185.7,1.6321]
[1734861373874,2.11889664,185.82,185.7,1.6321]
[1734861373875,5.04518694,185.85,185.74,17.55791932]
[1734861374089,5.04518694,185.85,185.75,17.55791932]
[1734861374283,1.00948694,185.85,185.76,23.776884]
[1734861374473,1.00904702,185.87,185.77,23.71361932]
[1734861374675,1.00904702,185.87,185.77,6.1557]
[1734861374975,1.00904702,185.87,185.78,1.6321]
[1734861375997,1.00904702,185.87,185.79,23.776884]
[1734861376171,1.00891628,185.86,185.79,23.776884]
[1734861376365,1.00899659,185.88,185.79,23.776884]
[1734861377176,4.0339,185.92,185.78,1.6321]
[1734861377487,4.0339,185.92,185.74,1.6321]
[1734861377488,23.776884,185.87,185.74,1.6321]
[1734861377679,4.84861219,185.86,185.74,1.6321]
[1734861378087,20.0,185.83,185.74,1.6321]
[1734861378269,21.00939071,185.82,185.74,1.6321]
[1734861379086,21.00939071,185.82,185.69,19.09811932]
[1734861379271,21.00939071,185.82,185.69,1.5402]
[1734861379887,21.00939071,185.82,185.69,19.09811932]
[1734861380285,20.0,185.79,185.7,23.776884]
[1734861380585,21.00946857,185.78,185.7,41.33480332]
[1734861381301,21.00946857,185.78,185.7,23.776884]
[1734861382199,21.00946857,185.78,185.69,1.5402]
[1734861382395,1.00946857,185.78,185.69,1.5402]
[1734861382582,20.0,185.76,185.69,1.5402]
[1734861382795,1.00957975,185.75,185.69,1.5402]
[1734861384808,20.0,185.81,185.7,23.776884]
[1734861384989,21.00942042,185.8,185.7,41.33480332]
[1734861385597,21.00942042,185.8,185.7,23.776884]
[1734861386101,20.0,185.78,185.7,23.776884]
[1734861386275,1.009505,185.77,185.7,23.776884]
[1734861387803,24.0365,185.81,185.72,17.55791932]
[1734861388005,20.0,185.78,185.72,17.55791932]
[1734861388385,20.0,185.78,185.72,23.776884]
[1734861388893,1.00938764,185.77,185.69,19.09811932]
[1734861389210,1.00938764,185.77,185.7,23.776884]
[1734861392785,1.00938764,185.77,185.69,1.5402]
[1734861395823,20.0,185.74,185.66,17.55791932]
[1734861396112,20.0,185.74,185.64,7.718]
[1734861396113,21.00975031,185.73,185.64,18.69507128]
[1734861396415,21.00975031,185.73,185.64,7.718]
[1734861396605,21.00975031,185.73,185.64,18.69507128]
[1734861397322,21.00975031,185.73,185.65,23.776884]
[1734861397498,4.0374,185.76,185.65,23.776884]
[1734861397499,1.00973317,185.75,185.67,10.97707128]
[1734861397694,1.00958321,185.78,185.68,10.97707128]
[1734861398007,20.0,185.76,185.68,17.55881051]
[1734861398214,1.00957923,185.75,185.68,17.55881051]
[1734861399808,1.00957923,185.75,185.67,17.55881051]
[1734861400308,1.00957923,185.75,185.68,23.776884]
[1734861400813,1.00957923,185.75,185.66,17.55881051]
[1734861401011,1.00957923,185.75,185.67,23.776884]
[1734861401195,20.0,185.74,185.67,23.776884]
[1734861401395,1.00965345,185.73,185.67,23.776884]
[1734861402109,1.00965345,185.73,185.67,41.33569451]
[1734861402326,20.0,185.74,185.68,17.55881051]
[1734861403714,20.0,185.74,185.67,23.776884]
[1734861403715,1.00964702,185.76,185.69,17.55881051]
[1734861404028,1.00945991,185.82,185.74,41.33569451]
[1734861404330,1.00945991,185.82,185.76,17.55881051]
[1734861404510,9.36236352,185.83,185.76,17.55881051]
[1734861404887,1.0091481,185.83,185.76,17.55881051]
[1734861405620,1.00916802,185.87,185.78,17.55881051]
[1734861405927,1.00897265,185.88,185.81,17.55881051]
[1734861406286,1.00897265,185.88,185.82,23.776884]
[1734861406486,1.00897265,185.88,185.82,24.131494]
[1734861406706,1.00897265,185.88,185.82,41.69030451]
[1734861406894,1.00897265,185.88,185.83,17.55881051]
[1734861407096,1.00882721,185.93,185.87,17.55881051]
[1734861407294,15.15508149,185.94,185.87,17.55881051]
[1734861407512,9.36177516,185.94,185.87,17.55881051]
[1734861407820,8.35321542,185.94,185.87,17.55881051]
[1734861408318,1.00851485,185.95,185.87,17.55881051]
[1734861409720,20.0,185.94,185.87,17.55881051]
[1734861409898,20.0,185.94,185.86,17.55881051]
[1734861410214,20.0,185.94,185.87,23.776884]
[1734861411014,1.008522,185.93,185.83,19.13051051]
[1734861411313,20.0,185.9,185.83,1.5717]
[1734861411494,4.0339,185.92,185.82,6.76071]
[1734861411495,21.00885341,185.89,185.82,6.76071]
[1734861415518,21.00885341,185.89,185.82,0.35461]
[1734861416708,21.00885341,185.89,185.82,41.69030451]
[1734861416919,21.00885341,185.89,185.82,0.35461]
[1734861418207,25.04355341,185.89,185.82,0.35461]
[1734861421804,33.11275341,185.89,185.82,0.35461]
[1734861422005,20.0,185.85,185.74,1.5285]
[1734861422234,1.00935751,185.84,185.72,17.55881051]
[1734861422410,1.00935751,185.84,185.71,17.55881051]
[1734861422806,20.0,185.81,185.71,17.55881051]
[1734861423001,21.00940062,185.8,185.71,17.55881051]
[1734861423531,21.00940062,185.8,185.69,1.5285]
[1734861424333,21.00940062,185.8,185.69,19.08731051]
[1734861424518,20.0,185.77,185.69,19.08731051]
[1734861424830,1.00952634,185.76,185.69,1.5285]
[1734861425845,1.00947168,185.76,185.69,19.08731051]
[1734861426133,20.0,185.75,185.69,1.5285]
[1734861427018,24.0372,185.78,185.69,1.5285]
[1734861427330,20.0,185.75,185.69,1.5285]
[1734861429245,1.00955045,185.74,185.67,17.55881051]
[1734861429547,1.00955045,185.74,185.66,17.55881051]
[1734861429711,1.00955045,185.74,185.67,23.776884]
[1734861430526,1.00955045,185.74,185.67,17.55881051]
[1734861430735,1.00955045,185.74,185.68,17.55881051]
[1734861431247,1.00955045,185.74,185.67,17.55881051]
[1734861432444,1.00955045,185.74,185.65,1.5285]
[1734861433239,1.00955045,185.74,185.64,17.55881051]
[1734861433535,20.0,185.71,185.64,17.55881051]
[1734861434207,0.99815204,185.73,185.64,17.55881051]
[1734861434208,0.99815204,185.73,185.64,0.12549]
[1734861434412,20.0,185.75,185.71,17.55881051]
[1734861434632,1.00970553,185.77,185.71,17.55881051]
[1734861434819,1.00940905,185.77,185.71,17.55881051]
[1734861435014,1.00940905,185.77,185.69,1.5285]
[1734861435243,20.0,185.75,185.69,19.08731051]
[1734861435811,20.0,185.75,185.7,17.55881051]
[1734861436035,20.0,185.78,185.7,17.55881051]
[1734861436239,5.04587277,185.81,185.72,17.55881051]
[1734861436534,5.04587277,185.81,185.73,17.55881051]
[1734861437037,5.04587277,185.81,185.72,17.55881051]
[1734861437222,5.04587277,185.81,185.72,23.776884]
[1734861437535,4.037,185.79,185.69,19.08731051]
[1734861437736,21.00954453,185.78,185.69,1.5285]
[1734861439023,21.00954453,185.78,185.68,23.776884]
[1734861440149,20.0,185.75,185.68,23.776884]
[1734861440318,1.00963418,185.74,185.67,23.776884]
[1734861440641,21.00963418,185.74,185.67,23.776884]
[1734861441022,21.00963418,185.74,185.65,17.55881051]
[1734861442241,21.00963418,185.74,185.66,23.776884]
[1734861442942,21.00963418,185.74,185.65,41.33569451]
[1734861443343,21.00963418,185.74,185.66,17.55881051]
[1734861443634,20.0,185.74,185.68,17.55881051]
[1734861444335,24.0365,185.81,185.69,23.776884]
[1734861444519,1.00945934,185.8,185.69,23.776884]
[1734861445142,1.00945934,185.8,185.69,41.33569451]
[1734861445341,1.00945934,185.8,185.7,17.55881051]
[1734861445640,1.00945934,185.8,185.71,23.776884]
[1734861446616,20.0,185.78,185.71,23.776884]
[1734861449337,20.0,185.78,185.73,17.55881051]
[1734861449547,1.009364,185.83,185.75,17.55881051]
[1734861449843,1.009364,185.83,185.77,23.776884]
[1734861450224,1.009364,185.83,185.76,23.776884]
[1734861450417,1.009364,185.83,185.73,17.55881051]
[1734861450831,1.009364,185.83,185.74,23.776884]
[1734861451441,20.0,185.82,185.74,23.776884]
[1734861451673,1.00921205,185.81,185.74,23.776884]
[1734861452647,20.0,185.83,185.74,41.33569451]
[1734861452857,20.0,185.83,185.75,17.55881051]
[1734861453049,21.00912807,185.82,185.74,17.55881051]
[1734861453357,20.0,185.82,185.75,23.776884]
[1734861453852,1.00913498,185.81,185.75,23.776884]
[1734861454023,1.00918762,185.81,185.74,23.776884]
[1734861454336,20.0,185.82,185.74,23.776884]
[1734861454536,1.009189,185.81,185.74,23.776884]
[1734861454731,20.0,185.82,185.74,23.776884]
[1734861455241,1.00919013,185.81,185.74,23.776884]
[1734861455940,20.0,185.8,185.73,23.776884]
[1734861456116,1.00936449,185.79,185.7,17.55881051]
[1734861456322,1.00936449,185.79,185.69,17.55881051]
[1734861457742,1.00936449,185.79,185.7,23.776884]
[1734861458240,1.00936449,185.79,185.7,41.33569451]
[1734861458442,1.00930347,185.79,185.71,17.55881051]
[1734861458827,1.00930347,185.79,185.7,41.33569451]
[1734861460044,1.00930347,185.79,185.7,23.776884]
[1734861460250,1.00930347,185.79,185.7,41.33569451]
[1734861461724,24.0365,185.8,185.71,17.55881051]
[1734861462025,25.04580244,185.8,185.72,23.776884]
[1734861462751,25.04580244,185.8,185.71,23.776884]
[1734861463050,1.00935473,185.83,185.73,23.776884]
[1734861463245,20.0,185.8,185.73,23.776884]
[1734861465424,1.0092487,185.79,185.73,23.776884]
[1734861465853,1.0092487,185.79,185.66,15.077]
[1734861465854,20.0,185.78,185.68,17.55881051]
[1734861466029,1.00950379,185.77,185.67,10.97393713]
[1734861466529,20.0,185.76,185.68,0.35461]
[1734861466730,1.00959081,185.75,185.68,0.35461]
[1734861468159,21.00960291,185.74,185.68,0.35461]
[1734861468733,1.00960291,185.74,185.68,0.35461]
[1734861470345,24.0376,185.75,185.68,0.35461]
[1734861470668,1.00956091,185.74,185.68,0.35461]
[1734861471943,4.0381,185.73,185.68,0.35461]
[1734861472141,20.0,185.7,185.68,0.35461]
[1734861472365,1.00988269,185.69,185.68,0.35461]
[1734861473356,20.0,185.7,185.68,0.35461]
[1734861473657,1.00983748,185.69,185.68,0.35461]
[1734861474063,21.00983748,185.69,185.68,0.35461]
[1734861474639,20.0,185.69,185.68,0.35461]
[1734861479754,20.0,185.72,185.62,0.6797025]
[1734861479954,21.00989656,185.71,185.62,0.6797025]
[1734861481257,20.0,185.69,185.62,0.6797025]
[1734861481451,20.0,185.69,185.63,23.776884]
[1734861481650,20.0,185.69,185.63,41.33808897]
[1734861482055,2.20362521,185.75,185.65,23.776884]
[1734861482275,1.00963398,185.74,185.66,23.776884]
[1734861482449,1.00963398,185.74,185.66,41.33808897]
[1734861482649,1.00952575,185.76,185.68,17.56120497]
[1734861482855,2.13938887,185.77,185.69,23.776884]
[1734861483062,1.00951756,185.76,185.66,41.33808897]
[1734861483258,1.00954262,185.78,185.66,41.33808897]
[1734861483562,4.0372,185.77,185.66,41.33808897]
[1734861483747,1.00953509,185.76,185.66,41.33808897]
[1734861484145,1.00953509,185.76,185.68,23.776884]
[1734861484571,20.0,185.74,185.68,23.776884]
[1734861484772,1.00958542,185.73,185.66,23.776884]
[1734861484953,20.0,185.76,185.66,23.776884]
[1734861485155,20.0,185.74,185.66,23.776884]
[1734861485355,20.0,185.74,185.66,41.33808897]
[1734861485981,1.00960092,185.73,185.65,6.4078]
[1734861486280,20.0,185.71,185.64,23.776884]
[1734861487391,20.0,185.75,185.64,41.33808897]
[1734861487571,21.00967892,185.74,185.64,41.33808897]
[1734861487766,21.00967892,185.74,185.66,23.776884]
[1734861488084,21.00967892,185.74,185.65,23.776884]
[1734861489274,20.0,185.74,185.66,17.68669497]
[1734861489478,20.0,185.75,185.67,17.56120497]
[1734861489778,20.0,185.74,185.68,23.776884]
[1734861491274,20.0,185.76,185.68,23.776884]
[1734861491455,21.00948693,185.76,185.68,23.776884]
[1734861491655,20.0,185.75,185.68,23.776884]
[1734861492072,20.0,185.75,185.68,41.33808897]
[1734861492378,4.0372,185.77,185.68,41.33808897]
[1734861492379,20.0,185.77,185.7,17.56120497]
[1734861492770,20.0,185.77,185.71,23.776884]
[1734861493077,1.00937219,185.76,185.68,31.802984]
[1734861493677,20.0,185.77,185.68,31.802984]
[1734861493874,1.00949296,185.76,185.68,31.802984]
[1734861494074,20.0,185.75,185.68,25.395184]
[1734861494377,1.00958556,185.74,185.68,25.395184]
[1734861494558,20.0,185.75,185.68,25.395184]
[1734861495176,1.00954278,185.74,185.68,25.395184]
[1734861495360,1.00954278,185.74,185.64,6.4078]
[1734861496765,1.00954278,185.74,185.65,23.776884]
[1734861498575,20.0,185.71,185.64,23.776884]
[1734861498961,20.0,185.7,185.64,23.776884]
[1734861499163,20.0,185.71,185.64,23.776884]
[1734861499572,20.0,185.72,185.65,10.97976015]
[1734861499786,20.0,185.72,185.66,23.776884]
[1734861502179,20.0,185.72,185.65,23.776884]
[1734861503090,20.0,185.72,185.64,23.776884]
[1734861503289,20.0,185.72,185.64,34.75664415]
[1734861503493,20.0,185.72,185.64,23.776884]
[1734861504504,21.0096926,185.71,185.64,23.776884]
[1734861504989,20.0,185.71,185.64,23.776884]
[1734861508003,1.00976861,185.7,185.62,0.6797025]
[1734861508589,24.0385,185.71,185.62,0.6797025]
[1734861509202,20.0,185.71,185.63,11.10525015]
[1734861509405,20.0,185.71,185.65,23.776884]
[1734861512031,20.0,185.74,185.67,23.776884]
[1734861512329,1.00963303,185.77,185.69,23.776884]
[1734861513633,21.00963303,185.77,185.69,23.776884]
[1734861515207,21.00963303,185.77,185.68,23.776884]
[1734861516004,20.0,185.75,185.68,23.776884]
[1734861516333,1.00960102,185.74,185.66,23.776884]
[1734861516627,20.0,185.73,185.66,23.776884]
[1734861516833,1.00968453,185.72,185.66,23.776884]
[1734861517836,20.0,185.73,185.66,23.776884]
[1734861518021,1.00967882,185.72,185.66,23.776884]
[1734861518333,20.0,185.73,185.66,23.776884]
[1734861519535,20.0,185.73,185.6,20.1219]
[1734861519536,1.00965799,185.72,185.6,8.2602]
[1734861519718,1.00965799,185.72,185.58,10.97976015]
[1734861520128,1.00965799,185.72,185.59,10.97976015]
[1734861520438,20.0,185.69,185.62,11.65946265]
[1734861521305,20.0,185.69,185.63,23.776884]
[1734861522636,1.00981128,185.68,185.62,0.6797025]
[1734861524163,20.0,185.67,185.62,0.6797025]
[1734861524930,20.0,185.69,185.63,23.776884]
[1734861525428,21.00984826,185.69,185.63,23.776884]
[1734861526138,21.00984826,185.69,185.62,0.6797025]
[1734861526438,21.00984826,185.69,185.63,0.35461]
[1734861528049,4.0392,185.68,185.63,0.35461]
[1734861528234,20.0,185.65,185.62,0.6797025]
[1734861528433,1.0101544,185.64,185.62,0.6797025]
[1734861528638,20.0,185.65,185.62,0.6797025]
[1734861528825,4.0392,185.68,185.62,0.6797025]
[1734861529026,20.0,185.65,185.62,0.6797025]
[1734861529752,20.0,185.69,185.62,0.6797025]
[1734861530052,20.0,185.68,185.62,0.6797025]
[1734861530351,1.0099044,185.7,185.63,23.776884]
[1734861531032,1.0099044,185.7,185.62,0.6797025]
[1734861531554,20.0,185.67,185.62,0.6797025]
[1734861532246,4.0389,185.69,185.62,0.6797025]
[1734861532454,20.0,185.66,185.62,0.6797025]
[1734861533352,24.0389,185.69,185.62,0.6797025]
[1734861533526,20.0,185.66,185.62,0.6797025]
[1734861534572,24.0389,185.69,185.62,11.65946265]
[1734861535759,24.0389,185.69,185.62,0.6797025]
[1734861537360,20.0,185.66,185.62,0.6797025]
[1734861538336,24.0389,185.69,185.62,0.6797025]
[1734861538644,20.0,185.66,185.62,0.6797025]
[1734861539363,20.0,185.64,185.62,0.6797025]
[1734861540157,4.0395,185.67,185.62,0.6797025]
[1734861540362,20.0,185.64,185.62,0.6797025]
[1734861541364,20.0,185.68,185.62,0.6797025]
[1734861541537,21.01007215,185.67,185.62,0.6797025]
[1734861543359,20.0,185.65,185.62,0.6797025]
[1734861544734,1.01011362,185.64,185.62,0.6797025]
[1734861545842,4.0399,185.65,185.62,0.6797025]
[1734861546043,20.0,185.63,185.62,0.6797025]
[1734861548865,20.0,185.63,185.51,8.0693]
[1734861548866,24.0402,185.63,185.51,8.0693]
[1734861549167,1.0103662,185.62,185.51,8.0693]
[1734861551178,1.0103662,185.62,185.52,23.776884]
[1734861552377,26.24375118,185.63,185.53,11.10525015]
[1734861552577,1.01025319,185.65,185.54,23.776884]
[1734861552877,20.0,185.64,185.54,23.776884]
[1734861553082,1.01018393,185.63,185.54,23.776884]
[1734861553769,1.01018393,185.63,185.53,23.902374]
[1734861554271,1.01019458,185.69,185.59,10.97976015]
[1734861554481,5.04864818,185.7,185.62,8.0693]
[1734861555688,20.0,185.67,185.62,8.0693]
[1734861556195,1.00989354,185.73,185.65,34.75664415]
[1734861556483,9.36278286,185.76,185.68,23.776884]
[1734861556786,8.35321542,185.76,185.68,34.75664415]
[1734861556970,8.35321542,185.76,185.71,8.0693]
[1734861557168,8.35321542,185.76,185.72,23.776884]
[1734861557484,1.00929952,185.79,185.72,23.776884]
[1734861557662,9.36252117,185.8,185.72,23.776884]
[1734861558275,1.00930575,185.8,185.72,23.776884]
[1734861558487,20.0,185.78,185.72,23.776884]
[1734861563073,20.0,185.81,185.72,23.776884]
[1734861563285,20.0,185.81,185.74,23.776884]
[1734861564095,3.16058456,185.84,185.74,23.776884]
[1734861564261,1.00930543,185.84,185.74,23.776884]
[1734861564464,1.00915281,185.87,185.74,23.776884]
[1734861565691,20.0,185.85,185.74,41.33080795]
[1734861565905,1.00911073,185.84,185.71,25.62322395]
[1734861566116,1.00911073,185.84,185.72,23.776884]
[1734861566887,20.0,185.81,185.72,23.776884]
[1734861567182,21.00930669,185.8,185.72,23.776884]
[1734861574018,20.0,185.79,185.71,1.6657]
[1734861574215,20.0,185.77,185.67,6.5945]
[1734861574522,1.00958085,185.76,185.67,6.5945]
[1734861575113,20.0,185.74,185.68,23.776884]
[1734861576717,1.00959666,185.73,185.67,6.5945]
[1734861576917,20.0,185.71,185.67,6.5945]
[1734861577720,4.038,185.74,185.67,6.5945]
[1734861577923,20.0,185.71,185.67,6.5945]
[1734861581620,1.00971821,185.73,185.67,6.5945]
[1734861581798,1.00961628,185.74,185.67,6.5945]
[1734861583127,20.0,185.73,185.67,6.5945]
[1734861583502,21.00961843,185.75,185.67,6.5945]
[1734861583903,21.00961843,185.75,185.66,1.6042]
[1734861584720,1.00961843,185.75,185.66,1.6042]
[1734861584901,1.00961843,185.75,185.66,12.57982502]
[1734861585227,20.0,185.74,185.67,34.75250902]
[1734861585524,5.04602401,185.81,185.71,23.776884]
[1734861586512,5.04602401,185.81,185.72,0.35461]
[1734861587538,20.0,185.78,185.72,0.35461]
[1734861587832,1.0096825,185.77,185.72,0.35461]
[1734861589535,4.0374,185.76,185.72,0.35461]
[1734861589739,20.0,185.73,185.72,0.35461]
[1734861590514,24.0381,185.73,185.72,0.35461]
[1734861593320,20.0,185.73,185.72,0.35461]
[1734861596040,20.0,185.73,185.72,8.56491]
[1734861600832,24.0381,185.73,185.72,8.56491]
[1734861601021,24.0381,185.73,185.72,8.2103]
[1734861601222,24.0381,185.73,185.72,3.49030001]
[1734861601422,24.0381,185.73,185.72,1.34530001]
[1734861603246,24.0381,185.73,185.66,7.6422]
[1734861603437,1.00992824,185.72,185.66,7.6422]
[1734861604526,4.0385,185.71,185.66,7.6422]
[1734861604728,20.0,185.68,185.66,7.6422]
[1734861605234,2.18702838,185.76,185.66,7.6422]
[1734861605235,24.0379,185.74,185.66,7.6422]
[1734861605562,1.00987293,185.73,185.66,7.6422]
[1734861606968,2.15168729,185.75,185.67,23.776884]
[1734861607268,1.00959251,185.74,185.67,23.776884]
[1734861608051,1.00963193,185.76,185.67,23.776884]
[1734861608455,20.0,185.74,185.67,23.776884]
[1734861608633,1.00963193,185.76,185.67,34.75250902]
[1734861608829,1.00947236,185.77,185.69,23.776884]
[1734861609225,1.00943265,185.79,185.73,6.6028]
[1734861609457,1.00933201,185.8,185.73,6.6028]
[1734861610176,4.0368,185.79,185.73,6.6028]
[1734861610474,1.00957852,185.78,185.68,6.6028]
[1734861610678,20.0,185.76,185.68,6.6028]
[1734861610878,20.0,185.72,185.68,6.6028]
[1734861611382,1.00974582,185.71,185.68,6.6028]
[1734861611578,20.0,185.72,185.68,6.6028]
[1734861613669,1.009736,185.71,185.68,6.6028]
[1734861614177,20.0,185.7,185.68,6.6028]
[1734861614374,1.00985443,185.69,185.68,6.6028]
[1734861614577,1.00985443,185.69,185.66,1.5096]
[1734861614780,20.0,185.7,185.66,1.5096]
[1734861616878,20.0,185.72,185.66,1.5096]
[1734861617080,21.00970764,185.72,185.66,1.5096]
[1734861617288,20.0,185.72,185.66,1.5096]
[1734861617792,20.0,185.73,185.66,1.5096]
[1734861617977,1.00966266,185.74,185.67,23.776884]
[1734861618176,1.00953501,185.76,185.67,34.75250902]
[1734861618391,1.00947979,185.77,185.69,23.776884]
[1734861619395,1.00948402,185.78,185.69,23.776884]
[1734861619596,20.0,185.76,185.69,23.776884]